bitfinex/quotes_BTCUSD_20240815
["timestamp","ask_amount","ask_price","bid_price","bid_amount"]
[1723699521441,0.088531,58694.0,58693.0,0.39081854]
[1723699521679,0.088531,58694.0,58687.0,0.238552]
[1723699521680,0.147831,58694.0,58687.0,0.238552]
[1723699521880,0.142831,58694.0,58691.0,0.119267]
[1723699522015,0.142831,58694.0,58693.0,0.119264]
[1723699522219,0.142831,58694.0,58688.0,0.1]
[1723699522220,0.083531,58694.0,58688.0,0.1]
[1723699522420,0.083531,58694.0,58689.0,0.119271]
[1723699522622,0.0761,58692.0,58688.0,0.17155454]
[1723699522801,0.0761,58692.0,58678.0,0.3924]
[1723699523013,0.0761,58686.0,58680.0,0.238582]
[1723699523261,0.0761,58685.0,58681.0,0.17155454]
[1723699523500,0.0761,58685.0,58683.0,0.119284]
[1723699523748,0.0761,58685.0,58683.0,0.29083854]
[1723699523966,0.0761,58685.0,58684.0,0.119282]
[1723699524177,0.0761,58685.0,58680.0,0.006]
[1723699524392,0.0811,58682.0,58680.0,0.006]
[1723699524603,0.0819,58681.0,58676.0,0.119298]
[1723699524810,0.0819,58681.0,58664.0,0.2924]
[1723699525011,0.0819,58681.0,58671.0,0.238617]
[1723699525012,0.0814,58677.0,58671.0,0.238617]
[1723699525223,0.0814,58673.0,58664.0,0.2924]
[1723699525482,0.0814,58673.0,58669.0,0.119311]
[1723699525708,0.0814,58673.0,58665.0,0.17155454]
[1723699525709,0.119308,58672.0,58665.0,0.17155454]
[1723699525905,0.0832,58667.0,58660.0,0.338661]
[1723699526129,0.0832,58667.0,58659.0,0.01011761]
[1723699526130,0.0593,58666.0,58661.0,0.17155454]
[1723699526333,0.0832,58665.0,58661.0,0.17155454]
[1723699526553,0.0832,58665.0,58658.0,0.23867]
[1723699526554,0.0832,58664.0,58658.0,0.23867]
[1723699526758,0.0832,58664.0,58661.0,0.119329]
[1723699526972,0.0832,58664.0,58661.0,0.119328]
[1723699527175,0.0832,58664.0,58659.0,0.41021954]
[1723699527380,0.0832,58664.0,58663.0,0.596627]
[1723699527785,0.0832,58664.0,58663.0,0.357976]
[1723699528081,0.248571,58683.0,58672.0,0.357921]
[1723699528082,0.0593,58673.0,58672.0,0.357921]
[1723699528723,0.1374,58673.0,58672.0,0.357921]
[1723699529124,0.1374,58673.0,58672.0,0.119307]
[1723699529778,0.1374,58673.0,58672.0,0.357921]
[1723699530175,0.1374,58673.0,58672.0,0.119307]
[1723699530377,0.1374,58673.0,58672.0,0.596535]
[1723699530827,0.0781,58673.0,58672.0,0.76808954]
[1723699531274,0.0781,58673.0,58672.0,1.06048954]
[1723699532715,0.0781,58673.0,58672.0,1.06148954]
[1723699533158,0.00090421,58680.0,58679.0,0.119293]
[1723699533309,0.00090421,58680.0,58679.0,0.357879]
[1723699533522,0.08020421,58680.0,58679.0,0.596465]
[1723699534384,0.08020421,58680.0,58679.0,0.597465]
[1723699534752,0.08020421,58680.0,58679.0,0.001]
[1723699534968,0.19949521,58680.0,58679.0,0.001]
[1723699535212,0.67665921,58680.0,58679.0,0.001]
[1723699535803,0.91524121,58680.0,58679.0,0.001]
[1723699535901,0.357933,58670.0,58669.0,0.000822]
[1723699536140,0.494433,58670.0,58669.0,0.000822]
[1723699536612,0.733055,58670.0,58669.0,0.000822]
[1723699537331,1.14323154,58670.0,58669.0,0.000822]
[1723699537554,0.0772,58657.0,58646.0,0.51466362]
[1723699537760,0.196548,58652.0,58648.0,0.119354]
[1723699537968,0.196548,58652.0,58644.0,0.068269]
[1723699537969,0.0772,58651.0,58644.0,0.068269]
[1723699538387,0.119352,58650.0,58645.0,0.119361]
[1723699538609,0.119352,58650.0,58646.0,0.119359]
[1723699538812,0.119356,58648.0,58639.0,0.068275]
[1723699539020,0.0772,58647.0,58644.0,0.119363]
[1723699539243,0.0772,58647.0,58637.0,0.238753]
[1723699539452,0.119363,58645.0,58640.0,0.119371]
[1723699539666,0.119363,58645.0,58639.0,0.119372]
[1723699539868,0.0772,58644.0,58640.0,0.119372]
[1723699540284,0.0772,58644.0,58636.0,0.238758]
[1723699540485,0.0772,58644.0,58638.0,0.238751]
[1723699540693,0.0772,58644.0,58634.0,0.000823]
[1723699540903,0.238737,58642.0,58639.0,0.004]
[1723699541145,0.238737,58642.0,58638.0,0.119375]
[1723699541146,0.0781,58642.0,58638.0,0.119375]
[1723699541543,0.197468,58642.0,58638.0,0.119375]
[1723699541751,0.197468,58642.0,58635.0,0.238763]
[1723699541991,0.119371,58641.0,58636.0,0.11938]
[1723699542195,0.0781,58642.0,58639.0,0.008]
[1723699542408,0.119371,58641.0,58639.0,0.008]
[1723699542616,0.119372,58640.0,58639.0,0.008]
[1723699542828,0.437016,58640.0,58639.0,0.008]
[1723699543306,0.496316,58640.0,58639.0,0.008]
[1723699543514,0.90661454,58640.0,58639.0,0.008]
[1723699543733,0.596912,58635.0,58634.0,0.000823]
[1723699543959,1.14663154,58635.0,58634.0,0.000823]
[1723699544386,0.1394,58635.0,58634.0,0.000823]
[1723699545249,0.1394,58635.0,58634.0,0.010823]
[1723699545457,0.258782,58635.0,58634.0,0.000823]
[1723699545666,0.497547,58635.0,58634.0,0.000823]
[1723699545879,0.736312,58635.0,58634.0,0.500823]
[1723699546305,0.90786654,58635.0,58634.0,0.500823]
[1723699546936,0.258782,58635.0,58634.0,0.500823]
[1723699547151,0.1394,58635.0,58634.0,0.500823]
[1723699547573,0.1414,58635.0,58634.0,0.500823]
[1723699547786,0.1394,58635.0,58634.0,0.500823]
[1723699548213,0.1414,58635.0,58634.0,0.500823]
[1723699548514,0.1394,58635.0,58634.0,0.500823]
[1723699548939,0.1414,58635.0,58634.0,0.500823]
[1723699549141,0.258782,58635.0,58634.0,0.500823]
[1723699549552,0.1414,58635.0,58634.0,0.500823]
[1723699550107,0.260782,58635.0,58634.0,0.500823]
[1723699550712,0.258782,58635.0,58634.0,0.500823]
[1723699550925,0.497547,58635.0,58634.0,0.500823]
[1723699551127,0.498547,58635.0,58634.0,0.500823]
[1723699551335,0.90886654,58635.0,58634.0,0.500823]
[1723699551530,0.90786654,58635.0,58634.0,0.500823]
[1723699551757,1.14663154,58635.0,58634.0,0.500823]
[1723699551955,1.14763154,58635.0,58634.0,0.500823]
[1723699552167,1.14663154,58635.0,58634.0,0.500823]
[1723699552595,1.14763154,58635.0,58634.0,0.500823]
[1723699553712,2.54947242,58635.0,58634.0,0.500823]
[1723699553861,2.55947242,58635.0,58634.0,0.500823]
[1723699554062,2.79723742,58635.0,58634.0,0.500823]
[1723699554270,2.79823742,58635.0,58634.0,0.500823]
[1723699554495,2.42613154,58635.0,58634.0,0.500823]
[1723699554709,2.18636654,58635.0,58634.0,0.500823]
[1723699555110,2.18736654,58635.0,58634.0,0.501823]
[1723699555310,2.18636654,58635.0,58634.0,0.500823]
[1723699555683,2.18736654,58635.0,58634.0,0.501823]
[1723699556728,2.42613154,58635.0,58634.0,0.501823]
[1723699557129,2.42513154,58635.0,58634.0,0.500823]
[1723699557375,2.59668608,58635.0,58634.0,0.500823]
[1723699557581,3.33768608,58635.0,58634.0,0.501823]
[1723699557783,3.39668608,58635.0,58634.0,0.500823]
[1723699558025,3.62978608,58635.0,58634.0,0.324113]
[1723699558226,0.675955,58621.0,58620.0,0.00822]
[1723699558493,2.12600954,58621.0,58620.0,0.00822]
[1723699558693,2.36483154,58621.0,58620.0,0.00822]
[1723699560803,2.36683154,58621.0,58620.0,0.00922]
[1723699561235,2.12800954,58621.0,58620.0,0.00922]
[1723699561637,0.002,58621.0,58620.0,0.128633]
[1723699562051,0.002,58621.0,58620.0,0.367459]
[1723699562675,0.002,58621.0,58620.0,0.07172]
[1723699562872,0.002,58621.0,58620.0,0.00922]
[1723699562873,0.121411,58621.0,58620.0,0.00922]
[1723699563497,0.358233,58621.0,58620.0,0.00822]
[1723699563725,0.597055,58621.0,58620.0,0.00822]
[1723699563921,0.599055,58621.0,58620.0,0.00922]
[1723699564179,0.599055,58621.0,58620.0,0.00822]
[1723699564362,0.597055,58621.0,58620.0,0.00822]
[1723699564531,0.599055,58621.0,58620.0,0.00922]
[1723699564856,0.599055,58621.0,58620.0,0.00822]
[1723699565055,0.59684994,58621.0,58620.0,0.00822]
[1723699565257,0.59884994,58621.0,58620.0,0.00922]
[1723699565998,0.36002794,58621.0,58620.0,0.00922]
[1723699566247,0.002,58621.0,58620.0,0.00922]
[1723699566847,0.002,58621.0,58620.0,0.128633]
[1723699568271,0.002,58621.0,58620.0,0.00922]
[1723699568466,0.123411,58621.0,58620.0,0.01022]
[1723699568666,0.004,58621.0,58620.0,0.01022]
[1723699568865,1.397908,58623.0,58620.0,0.00822]
[1723699569018,1.2785,58623.0,58621.0,0.238822]
[1723699569226,1.2785,58623.0,58622.0,0.119409]
[1723699570149,0.119398,58628.0,58620.0,0.247043]
[1723699570348,0.238784,58631.0,58625.0,0.119402]
[1723699570547,0.119395,58629.0,58625.0,0.119402]
[1723699570869,0.238778,58632.0,58622.0,0.238817]
[1723699570870,0.119396,58628.0,58624.0,0.119404]
[1723699571041,1.2785,58633.0,58624.0,0.238809]
[1723699571234,0.119386,58633.0,58627.0,0.238796]
[1723699571439,0.0818053,58634.0,58624.0,0.119404]
[1723699571639,0.119399,58627.0,58621.0,0.0664]
[1723699571869,0.119399,58627.0,58625.0,0.001]
[1723699572068,0.1194,58626.0,58622.0,0.119408]
[1723699572277,0.119398,58628.0,58623.0,0.119406]
[1723699572482,0.119399,58627.0,58622.0,0.119407]
[1723699572684,0.119399,58627.0,58623.0,0.119407]
[1723699572878,0.119399,58627.0,58621.0,0.185809]
[1723699573078,0.119399,58627.0,58622.0,0.119408]
[1723699573676,0.238782,58631.0,58621.0,0.0664]
[1723699573932,0.238782,58631.0,58625.0,0.119401]
[1723699574144,0.119394,58629.0,58625.0,0.119401]
[1723699574342,0.238782,58631.0,58621.0,0.0664]
[1723699574343,0.002,58633.0,58628.0,0.119396]
[1723699574546,0.119389,58632.0,58628.0,0.119396]
[1723699574750,0.002,58633.0,58629.0,0.119394]
[1723699574952,0.121386,58633.0,58629.0,0.119394]
[1723699575158,0.119386,58633.0,58627.0,0.358192]
[1723699575362,0.002,58629.0,58628.0,0.119396]
[1723699575593,0.002,58629.0,58626.0,0.119399]
[1723699575785,0.119394,58630.0,58626.0,0.119399]
[1723699575988,0.238778,58632.0,58625.0,0.119401]
[1723699576200,0.238778,58632.0,58629.0,0.001]
[1723699576201,0.119393,58630.0,58629.0,0.001]
[1723699576403,0.119393,58630.0,58625.0,0.119401]
[1723699576814,0.119398,58628.0,58622.0,0.238815]
[1723699577032,0.119398,58628.0,58622.0,0.119408]
[1723699577033,0.119399,58627.0,58622.0,0.119408]
[1723699577239,0.119401,58626.0,58622.0,0.119408]
[1723699577454,0.119401,58626.0,58621.0,0.0664]
[1723699577455,0.238802,58626.0,58621.0,0.0664]
[1723699577660,0.119409,58622.0,58621.0,0.0664]
[1723699577867,0.16667727,58629.0,58621.0,0.0664]
[1723699577868,0.0809,58629.0,58621.0,0.0664]
[1723699578070,0.121395,58629.0,58626.0,0.001]
[1723699578482,0.119397,58628.0,58624.0,0.119404]
[1723699578689,0.08577727,58625.0,58621.0,0.0674]
[1723699578861,0.119408,58623.0,58621.0,0.0674]
[1723699579095,0.119409,58622.0,58621.0,0.0664]
[1723699579297,0.08577727,58631.0,58621.0,0.18581]
[1723699579298,0.238797,58628.0,58621.0,0.18581]
[1723699579505,0.358196,58627.0,58626.0,0.001]
[1723699579693,0.358196,58627.0,58621.0,0.18581]
[1723699579694,0.119401,58626.0,58621.0,0.18581]
[1723699580260,0.0009053,58634.0,58633.0,0.477546]
[1723699580461,0.0009053,58634.0,58633.0,1.14308654]
[1723699580715,0.0009053,58634.0,58633.0,1.40485954]
[1723699581853,0.0029053,58634.0,58633.0,1.40585954]
[1723699582054,0.0009053,58634.0,58633.0,1.40485954]
[1723699582466,0.0009053,58634.0,58633.0,1.41285954]
[1723699584661,0.0009053,58634.0,58633.0,0.746032]
[1723699584864,0.0009053,58634.0,58633.0,0.0687]
[1723699585043,0.0009053,58634.0,58633.0,0.008]
[1723699585269,0.1202893,58634.0,58633.0,0.008]
[1723699585806,0.119388,58633.0,58628.0,0.0622]
[1723699586169,0.119389,58632.0,58628.0,0.0622]
[1723699586354,0.2396753,58634.0,58628.0,0.0622]
[1723699586551,0.119393,58630.0,58626.0,0.1194]
[1723699586885,0.2396753,58634.0,58625.0,0.119402]
[1723699586886,0.119395,58629.0,58625.0,0.119402]
[1723699587088,0.119395,58629.0,58624.0,0.119404]
[1723699587218,0.08577727,58631.0,58623.0,0.119406]
[1723699587219,0.119397,58628.0,58623.0,0.119406]
[1723699587407,0.119397,58628.0,58624.0,0.119404]
[1723699587611,0.119397,58628.0,58622.0,0.238817]
[1723699587612,0.119394,58630.0,58625.0,0.119402]
[1723699588780,0.119394,58630.0,58625.0,0.120402]
[1723699588956,0.123394,58630.0,58625.0,0.120402]
[1723699589364,0.119394,58629.0,58625.0,0.120402]
[1723699589568,0.238794,58628.0,58625.0,0.001]
[1723699589773,0.119396,58629.0,58625.0,0.001]
[1723699590273,0.358201,58626.0,58625.0,0.001]
[1723699590440,0.358201,58626.0,58621.0,0.000823]
[1723699590441,0.119409,58622.0,58621.0,0.000823]
[1723699590681,0.52978154,58622.0,58621.0,0.000823]
[1723699590894,0.76859954,58622.0,58621.0,0.000823]
[1723699591106,0.84829954,58622.0,58621.0,0.000823]
[1723699591310,2.29835408,58622.0,58621.0,0.000823]
[1723699591491,2.34932401,58622.0,58621.0,0.000823]
[1723699591893,2.34935509,58622.0,58621.0,0.000823]
[1723699592080,2.35235509,58622.0,58621.0,0.001823]
[1723699592284,2.34935509,58622.0,58621.0,0.000823]
[1723699592527,2.17780055,58622.0,58621.0,0.000823]
[1723699592734,1.93898255,58622.0,58621.0,0.000823]
[1723699592935,2.17780055,58622.0,58621.0,0.000823]
[1723699593996,2.19080055,58622.0,58621.0,0.001823]
[1723699594252,2.17780055,58622.0,58621.0,0.000823]
[1723699594466,2.19180055,58622.0,58621.0,0.000823]
[1723699594657,2.14079954,58622.0,58621.0,0.000823]
[1723699595070,1.2925,58622.0,58621.0,0.359056]
[1723699595273,1.2785,58622.0,58621.0,0.359056]
[1723699595478,1.2785,58622.0,58621.0,0.419156]
[1723699595681,0.119397,58628.0,58623.0,0.119406]
[1723699595834,0.119399,58627.0,58623.0,0.119406]
[1723699596039,0.23879,58629.0,58621.0,0.299745]
[1723699596247,1.64597979,58630.0,58624.0,0.119403]
[1723699596476,0.119399,58627.0,58622.0,0.119408]
[1723699596651,0.119399,58627.0,58623.0,0.119406]
[1723699597863,0.1194,58627.0,58621.0,0.061923]
[1723699598049,0.1194,58627.0,58622.0,0.119408]
[1723699598444,0.012,58627.0,58625.0,0.119401]
[1723699598723,0.119396,58629.0,58625.0,0.119401]
[1723699598887,0.119397,58628.0,58622.0,0.238815]
[1723699599048,0.119397,58628.0,58624.0,0.119404]
[1723699599049,0.012,58627.0,58624.0,0.119404]
[1723699599451,0.119397,58628.0,58624.0,0.119404]
[1723699599658,1.69814272,58630.0,58626.0,0.119399]
[1723699600080,1.32949518,58630.0,58627.0,0.119398]
[1723699600281,1.32949518,58630.0,58625.0,0.238805]
[1723699600282,0.05099518,58631.0,58629.0,0.119394]
[1723699600682,0.05099518,58632.0,58627.0,0.119397]
[1723699600884,0.17038529,58631.0,58627.0,0.119397]
[1723699601088,0.05099429,58631.0,58628.0,0.119396]
[1723699601284,0.43465244,58633.0,58629.0,0.119394]
[1723699601285,0.05099429,58632.0,58629.0,0.119394]
[1723699601504,0.05099429,58632.0,58629.0,0.120394]
[1723699601675,0.013,58631.0,58629.0,0.120394]
[1723699601878,0.05099429,58632.0,58627.0,0.238795]
[1723699602085,0.05099429,58632.0,58628.0,0.120395]
[1723699602287,0.013,58631.0,58628.0,0.120395]
[1723699602488,0.05099429,58632.0,58626.0,0.119398]
[1723699602698,0.17038529,58631.0,58627.0,0.119398]
[1723699602929,0.06399429,58631.0,58629.0,0.001]
[1723699603142,0.358177,58630.0,58629.0,0.001]
[1723699603335,0.85031654,58630.0,58629.0,0.001]
[1723699603553,1.29923783,58630.0,58629.0,0.001]
[1723699603791,0.119407,58623.0,58621.0,0.000823]
[1723699604107,0.17040214,58625.0,58621.0,0.000823]
[1723699604478,0.05099914,58625.0,58621.0,0.000823]
[1723699604677,0.07649871,58626.0,58624.0,0.119405]
[1723699604825,0.05099914,58628.0,58621.0,0.000823]
[1723699605041,0.238794,58628.0,58621.0,0.000823]
[1723699605259,0.05099914,58630.0,58621.0,0.001823]
[1723699605260,0.126409,58623.0,58621.0,0.001823]
[1723699605699,0.119409,58623.0,58621.0,0.000823]
[1723699606033,0.358227,58622.0,58621.0,0.000823]
[1723699606401,0.597045,58622.0,58621.0,0.000823]
[1723699606559,0.358227,58622.0,58621.0,0.000823]
[1723699606767,0.05099914,58623.0,58621.0,0.000823]
[1723699606970,0.05099914,58624.0,58622.0,0.119409]
[1723699607412,0.05099914,58624.0,58622.0,0.119408]
[1723699608040,0.008,58623.0,58622.0,0.119408]
[1723699608440,0.05099914,58624.0,58622.0,0.119408]
[1723699608797,0.05099914,58624.0,58621.0,0.000823]
[1723699609004,0.05099914,58624.0,58621.0,0.120233]
[1723699609217,0.05999914,58624.0,58622.0,0.001]
[1723699609395,0.06002897,58624.0,58623.0,0.119407]
[1723699609595,0.06002897,58624.0,58622.0,0.001]
[1723699609801,0.06002897,58624.0,58623.0,0.358221]
[1723699610874,0.06002897,58624.0,58622.0,0.120407]
[1723699611373,0.119407,58623.0,58621.0,0.000823]
[1723699611593,0.52919227,58624.0,58623.0,0.001]
[1723699611807,0.52919227,58624.0,58621.0,0.000823]
[1723699611808,0.912063,58622.0,58621.0,0.000823]
[1723699612002,0.358233,58621.0,58620.0,0.00724397]
[1723699612223,2.60809396,58621.0,58620.0,0.00724397]
[1723699612369,3.2675979,58621.0,58620.0,0.00724397]
[1723699612781,3.19787114,58621.0,58620.0,0.00724397]
[1723699612991,3.54917444,58621.0,58620.0,0.00724397]
[1723699613192,3.20036715,58621.0,58620.0,0.00724397]
[1723699613542,2.86299399,58621.0,58620.0,0.00724397]
[1723699613948,2.21379545,58621.0,58620.0,0.00724397]
[1723699614156,1.6207902,58621.0,58620.0,0.12665697]
[1723699614357,1.35502574,58621.0,58620.0,0.00724397]
[1723699614754,1.48843674,58621.0,58620.0,0.00824397]
[1723699615292,1.411911,58621.0,58620.0,0.00824397]
[1723699615496,1.68774312,58621.0,58620.0,0.00724397]
[1723699615909,1.641733,58621.0,58620.0,0.00724397]
[1723699616122,1.32951019,58621.0,58620.0,0.00724397]
[1723699616344,0.05101019,58621.0,58620.0,0.12665697]
[1723699616566,0.06201019,58621.0,58620.0,0.12665697]
[1723699618048,0.0620073,58621.0,58620.0,0.12665697]
[1723699618479,0.0620073,58621.0,58620.0,0.00724397]
[1723699618910,0.011,58621.0,58620.0,0.00724397]
[1723699619173,0.0620073,58621.0,58620.0,0.00724397]
[1723699619383,0.011,58621.0,58620.0,0.00724397]
[1723699619802,0.130411,58621.0,58620.0,0.00724397]
[1723699620648,0.011,58621.0,58620.0,0.00724397]
[1723699621482,0.369233,58621.0,58620.0,0.00724397]
[1723699621781,0.011,58621.0,58620.0,1.16348951]
[1723699621985,0.011,58621.0,58620.0,1.75881551]
[1723699622201,0.011,58621.0,58620.0,1.51998951]
[1723699622384,0.011,58621.0,58620.0,1.53008654]
[1723699622960,0.0009053,58629.0,58620.0,1.53008654]
[1723699622961,0.0009053,58629.0,58628.0,0.440789]
[1723699623166,0.0009053,58629.0,58628.0,0.506989]
[1723699623389,0.0009053,58629.0,58628.0,0.745782]
[1723699623605,0.0009053,58629.0,58628.0,0.0662]
[1723699623606,0.1202993,58629.0,58628.0,0.0662]
[1723699624035,0.0009053,58629.0,58625.0,0.119401]
[1723699624300,0.0009053,58629.0,58624.0,0.0662]
[1723699624504,0.1203003,58629.0,58624.0,0.0662]
[1723699624730,0.1203003,58629.0,58624.0,0.185604]
[1723699624888,0.0009053,58629.0,58624.0,0.0662]
[1723699625096,0.0009053,58629.0,58626.0,0.1194]
[1723699625377,0.1202993,58629.0,58625.0,0.119402]
[1723699625691,0.119397,58628.0,58624.0,0.186605]
[1723699626031,0.119402,58625.0,58624.0,0.0662]
[1723699626372,0.119401,58626.0,58624.0,0.0662]
[1723699626782,0.119399,58627.0,58624.0,0.0662]
[1723699627406,0.119402,58625.0,58624.0,0.0662]
[1723699627811,0.119411,58621.0,58620.0,0.06854397]
[1723699628010,0.358233,58621.0,58620.0,0.06854397]
[1723699628212,0.358233,58621.0,58620.0,0.00724397]
[1723699628412,0.40921656,58621.0,58620.0,0.00724397]
[1723699628617,0.358233,58621.0,58620.0,0.00724397]
[1723699628862,0.40921656,58621.0,58620.0,0.00724397]
[1723699629313,0.67353034,58621.0,58620.0,0.00724397]
[1723699629478,2.48846958,58621.0,58620.0,0.00724397]
[1723699629648,2.36833154,58621.0,58620.0,0.00724397]
[1723699629863,2.57004681,58621.0,58620.0,0.00724397]
[1723699630039,2.4679679,58621.0,58620.0,0.00724397]
[1723699630881,2.59062472,58621.0,58620.0,0.00724397]
[1723699632012,2.09784818,58621.0,58620.0,0.00824397]
[1723699632143,2.20901336,58621.0,58620.0,0.00724397]
[1723699632562,2.22301336,58621.0,58620.0,0.00724397]
[1723699632812,2.6193899,58621.0,58620.0,0.00724397]
[1723699633184,2.84060982,58621.0,58620.0,0.00724397]
[1723699633622,2.7137899,58621.0,58620.0,0.00724397]
[1723699634043,2.6997899,58621.0,58620.0,0.00724397]
[1723699634254,2.69895613,58621.0,58620.0,0.00724397]
[1723699634453,3.48895613,58621.0,58620.0,1e-08]
[1723699634653,3.91374962,58621.0,58620.0,1e-08]
[1723699634886,3.89749669,58621.0,58620.0,1e-08]
[1723699635025,3.89749669,58621.0,58610.0,0.00822]
[1723699635026,0.91732,58611.0,58610.0,0.00822]
[1723699635220,1.5797411,58611.0,58610.0,0.00822]
[1723699635420,1.66536213,58611.0,58610.0,0.00822]
[1723699636020,2.07298516,58611.0,58610.0,0.00822]
[1723699636441,1.81849634,58611.0,58610.0,0.00822]
[1723699636823,1.82849634,58611.0,58610.0,0.00822]
[1723699637009,3.4285774,58611.0,58610.0,0.00822]
[1723699637216,3.5375774,58611.0,58610.0,0.00822]
[1723699637420,3.88132022,58611.0,58610.0,0.00822]
[1723699637625,3.70913194,58611.0,58610.0,0.00822]
[1723699638053,3.88132022,58611.0,58610.0,0.00822]
[1723699638293,2.96660115,58611.0,58610.0,0.00822]
[1723699638468,4.63285246,58611.0,58610.0,0.00822]
[1723699638727,4.46066356,58611.0,58610.0,0.00822]
[1723699638935,4.47466356,58611.0,58610.0,0.00822]
[1723699639603,4.49466356,58611.0,58610.0,0.00822]
[1723699639767,4.76652656,58611.0,58610.0,0.00822]
[1723699640156,2.375235,58607.0,58599.0,0.000821]
[1723699640316,2.85143298,58607.0,58599.0,0.000821]
[1723699640516,2.59846973,58607.0,58599.0,0.000821]
[1723699640726,2.35959073,58607.0,58599.0,0.000821]
[1723699640929,1.27028,58607.0,58606.0,0.19103876]
[1723699641125,1.389719,58607.0,58606.0,0.19103876]
[1723699641786,1.628598,58607.0,58606.0,0.19103876]
[1723699642013,1.642598,58607.0,58606.0,0.19103876]
[1723699642219,1.403719,58607.0,58606.0,0.19103876]
[1723699642602,1.389719,58607.0,58606.0,0.19103876]
[1723699642881,1.640598,58607.0,58606.0,0.19103876]
[1723699643115,1.28228,58607.0,58606.0,0.19103876]
[1723699643276,1.389719,58607.0,58606.0,0.19103876]
[1723699643475,1.27028,58607.0,58606.0,0.19103876]
[1723699643776,0.11943,58612.0,58607.0,0.119438]
[1723699643946,0.119432,58611.0,58606.0,0.19103876]
[1723699644164,0.119433,58610.0,58606.0,0.31047876]
[1723699644326,0.119435,58609.0,58606.0,0.19103876]
[1723699644667,0.119439,58607.0,58606.0,0.19103876]
[1723699644826,0.368318,58607.0,58606.0,0.19103876]
[1723699645187,0.119439,58607.0,58606.0,0.19103876]
[1723699645391,0.119432,58611.0,58606.0,0.19103876]
[1723699645596,0.012,58610.0,58606.0,0.19103876]
[1723699645797,0.131433,58610.0,58606.0,0.31047976]
[1723699646051,0.119433,58610.0,58606.0,0.31047976]
[1723699646371,0.009,58607.0,58606.0,0.19103876]
[1723699646497,0.23886,58612.0,58606.0,0.19103876]
[1723699646700,0.119434,58610.0,58606.0,0.19103876]
[1723699646995,0.119433,58610.0,58606.0,0.31047976]
[1723699647631,0.119433,58610.0,58606.0,0.19103876]
[1723699647836,0.119435,58609.0,58606.0,0.19103876]
[1723699648042,0.012,58610.0,58606.0,0.19103876]
[1723699648290,0.119435,58609.0,58606.0,0.19103876]
[1723699649096,1.389711,58611.0,58606.0,0.31047876]
[1723699649322,0.011,58609.0,58608.0,0.119437]
[1723699649577,0.011,58609.0,58607.0,0.119438]
[1723699650279,0.011,58609.0,58608.0,0.119437]
[1723699650692,0.011,58609.0,58608.0,0.674787]
[1723699651652,1.27028,58614.0,58609.0,0.238868]
[1723699651860,1.27028,58614.0,58612.0,0.183928]
[1723699652296,1.389706,58614.0,58612.0,0.0645]
[1723699652505,1.27028,58614.0,58612.0,0.0645]
[1723699653318,1.28428,58614.0,58612.0,0.0645]
[1723699654354,1.28428,58614.0,58612.0,0.183929]
[1723699654592,1.28428,58614.0,58613.0,0.119427]
[1723699654794,1.38950068,58614.0,58612.0,0.0645]
[1723699655016,1.27607468,58614.0,58612.0,0.0645]
[1723699655231,1.27607468,58614.0,58612.0,0.183928]
[1723699655232,0.006,58614.0,58612.0,0.183928]
[1723699655433,0.006,58614.0,58613.0,0.119427]
[1723699655968,0.006,58614.0,58612.0,0.183929]
[1723699656170,0.125426,58614.0,58612.0,0.0645]
[1723699656296,1.27007468,58617.0,58613.0,0.119427]
[1723699656297,1.38949368,58617.0,58613.0,0.119427]
[1723699656497,0.08577727,58616.0,58612.0,0.0645]
[1723699656680,0.125426,58614.0,58612.0,0.0645]
[1723699656904,0.119427,58613.0,58612.0,0.0645]
[1723699657965,0.238847,58615.0,58612.0,0.0645]
[1723699658203,0.119427,58613.0,58612.0,0.0645]
[1723699658882,0.128427,58613.0,58612.0,0.0645]
[1723699659114,0.119427,58613.0,58612.0,0.0645]
[1723699659516,0.124427,58613.0,58612.0,0.0645]
[1723699659843,0.119427,58613.0,58612.0,0.0645]
[1723699660404,0.119427,58613.0,58608.0,0.078423]
[1723699660405,0.119435,58609.0,58608.0,0.000823]
[1723699660605,0.358306,58609.0,58608.0,0.000823]
[1723699662008,0.597177,58609.0,58608.0,0.000823]
[1723699662381,0.598177,58609.0,58608.0,0.000823]
[1723699662985,0.605177,58609.0,58608.0,0.000823]
[1723699663347,0.597177,58609.0,58608.0,0.000823]
[1723699663493,0.604177,58609.0,58608.0,0.000823]
[1723699663694,0.604177,58609.0,58608.0,0.00035779]
[1723699665684,0.007,58609.0,58608.0,0.20299479]
[1723699665886,0.007,58609.0,58608.0,0.44186979]
[1723699666393,0.007,58609.0,58608.0,0.00035779]
[1723699666603,0.126435,58609.0,58608.0,0.00035779]
[1723699668094,0.007,58609.0,58608.0,0.00035779]
[1723699668307,0.126435,58609.0,58608.0,0.00035779]
[1723699668709,0.126435,58609.0,58608.0,0.11979479]
[1723699668710,0.007,58609.0,58608.0,0.11979479]
[1723699669469,0.007,58609.0,58608.0,0.35866979]
[1723699669674,0.007,58609.0,58608.0,0.43656979]
[1723699670345,0.007,58609.0,58608.0,0.91431979]
[1723699670649,0.007,58609.0,58608.0,1.07651979]
[1723699671209,0.007,58609.0,58608.0,0.83764479]
[1723699671406,0.007,58609.0,58608.0,0.8478031]
[1723699672052,0.0009053,58610.0,58609.0,0.597177]
[1723699672253,0.0009053,58610.0,58609.0,0.697177]
[1723699672632,0.0009053,58610.0,58609.0,0.936048]
[1723699672835,0.0009053,58610.0,58609.0,0.697177]
[1723699673531,0.0029053,58610.0,58609.0,0.697177]
[1723699674361,0.0029053,58610.0,58609.0,0.458306]
[1723699674563,0.0029053,58610.0,58608.0,0.25989479]
[1723699674720,0.0029053,58610.0,58608.0,0.25989379]
[1723699675316,0.0009053,58610.0,58608.0,0.14045779]
[1723699675523,0.0009053,58610.0,58608.0,0.25989479]